FIN.Transaction Date,MCH.Merchant Name,FIN.Accounting Code 01 Description,FIN.Accounting Code 03 Description,FIN.Net Transaction Amount,FIN.Transaction Amount,FIN.TAX.Net Amount,FIN.Tax Amount,FIN.TAX.Tax Rate,FIN.Tax Rate(%)
30/09/2015,WATER COOLERS DIRECT.C,Aggregated Budgets,Catering Services Contractors,20,20,0,0,0,0
30/09/2015,WATER COOLERS DIRECT.C,Aggregated Budgets,Catering Services Contractors,27.96,33.55,0,5.59,0,20
30/09/2015,TRAINLINE,Central Personnel Expenses,Internal Training,153.51,153.51,0,0,0,0
30/09/2015,Amazon UK Marketplace,Sconce & Devon Park,Contractual Services,154.9,154.9,0,0,0,0
30/09/2015,WWW.AVANTAUK.COM,Vicar Water Park,Materials,44.09,52.91,0,8.82,0,20
30/09/2015,Amazon UK Marketplace,Sconce & Devon Park,Contractual Services,32.99,32.99,0,0,0,0
30/09/2015,CO OP FOOD,Southwell Tr admin & ops,Vending Machine Provisions,10,10,0,0,0,0
30/09/2015,HALDO DEVELOPMENTS,Cctv,Other Equipment And Tools,12.26,14.71,0,2.45,0,20
30/09/2015,POPPLESTON ALLEN,Central Personnel Expenses,Internal Training,200,240,0,40,0,20
01/10/2015,ACO TECHNOLOGIES L,Environmental Schemes,Premises Repairs & Renewals,425.86,511.03,0,85.17,0,20
01/10/2015,FARMSTAR LTD,Grounds Maintenance,Clothing And Uniforms,193.87,232.64,0,38.77,0,20
02/10/2015,WWW.DVLA.GOV.UK,Pest Control,Licences & M.O.T.'S,227.5,227.5,0,0,0,0
02/10/2015,WWW.DVLA.GOV.UK,Refuse Collection,Licences & M.O.T.'S,652.5,652.5,0,0,0,0
02/10/2015,WWW.DVLA.GOV.UK,Refuse Collection,Licences & M.O.T.'S,652.5,652.5,0,0,0,0
02/10/2015,WWW.DVLA.GOV.UK,Refuse Collection,Licences & M.O.T.'S,227.5,227.5,0,0,0,0
03/10/2015,ASDA  STORES 4201,National Civil War Centre,Travel And Subsistence,12,12,0,0,0,0
02/10/2015,VIRGINTRAINSEC SERVCS,Planning Support,Travel And Subsistence,24.3,24.3,0,0,0,0
02/10/2015,CO OP FOOD,Southwell Tr admin & ops,Vending Machine Provisions,10,10,0,0,0,0
02/10/2015,XMA LTD,Newark Tic,Office Equipment Maintenance,109.36,131.23,0,21.87,0,0
05/10/2015,POLLARDS OF NEWARK LIM,National Civil War Centre,Education & Outreach,12.01,14.41,0,2.4,0,20
05/10/2015,Amazon UK Marketplace,National Civil War Centre,Is Stock Consumables,8.32,9.99,0,1.67,0,20
05/10/2015,EastMidlandsTrains,Moving Ahead,Miscellaneous Expenses,20,20,0,0,0,0
06/10/2015,CO OP FOOD,Southwell Tr admin & ops,Vending Machine Provisions,10,10,0,0,0,0
06/10/2015,CO OP FOOD,Southwell Tr admin & ops,Meals,5.99,5.99,0,0,0,0
06/10/2015,DISCLOSURE & BARRING,Leisure Centres,Professional Services,13,13,0,0,0,0
06/10/2015,DISCLOSURE & BARRING,Personnel Section,Disclosure & barring service,13,13,0,0,0,0
06/10/2015,ARCO LTD,Car Parks & Markets Admin,Clothing And Uniforms,293.82,352.58,0,58.76,0,0
05/10/2015,WWW.THESAFESHOP.CO,Cctv,Other Equipment And Tools,70,84,0,14,0,20
07/10/2015,PURE SAFETY,Active4Today repairs & maintenance,Payments,30.15,36.18,0,6.03,0,20
07/10/2015,DISCLOSURE SCOT,Cashiers,Contractual Services,20.83,25,0,4.17,0,20
07/10/2015,DISCLOSURE SCOT,Cashiers,Contractual Services,20.83,25,0,4.17,0,20
06/10/2015,ARCO LTD,Car Parks & Markets Admin,Clothing And Uniforms,106.32,127.58,0,21.26,0,0
07/10/2015,BT BILL PAYMENT 1,Cctv,Telephones,83.74,100.49,0,16.75,0,20
07/10/2015,TNT DIRECT,Area Planning,Postages,32.9,39.48,0,6.58,0,20
07/10/2015,DISCLOSURE SCOT,Cashiers,Contractual Services,20.83,25,0,4.17,0,20
08/10/2015,VIRGINTRAINSEC SERVCS,Area Planning,Travel And Subsistence,114.2,114.2,0,0,0,0
08/10/2015,UKOFFICEDIRECT.CO.,Planning Support,Clothing And Uniforms,34.94,34.94,0,0,0,0
08/10/2015,TNT DIRECT,Area Planning,Professional Services,45.77,45.77,0,0,0,0
08/10/2015,TNT DIRECT,Area Planning,Professional Services,45.77,45.77,0,0,0,0
08/10/2015,PAYPAL  CAMPAIGNFOR,Arts Development,Contractual Services,30,30,0,0,0,0
08/10/2015,NATIONAL PORTRAIT,National Civil War Centre,Exhibitions And Displays,150,150,0,0,0,0
08/10/2015,ARCO LTD,Car Parks & Markets Admin,Clothing And Uniforms,86.97,104.36,0,17.39,0,0
08/10/2015,ARCO LTD,Risk Management,Clothing And Uniforms,101.24,121.49,0,20.25,0,0
08/10/2015,XMA LTD,Customer Services,Office Equipment Purchase,70.99,85.19,0,14.2,0,0
09/10/2015,WWW.DVLA.GOV.UK,Vicar Water Park,Licences & M.O.T.'S,227.5,227.5,0,0,0,0
09/10/2015,Amazon UK Marketplace,National Civil War Centre,Travel And Subsistence,56.65,67.98,0,11.33,0,20
09/10/2015,CO OP FOOD,Southwell Tr admin & ops,Vending Machine Provisions,12,12,0,0,0,0
08/10/2015,ARCO LTD,Car Parks & Markets Admin,Clothing And Uniforms,38.56,46.27,0,7.71,0,0
09/10/2015,Amazon EU,Cctv,Other Equipment And Tools,19.18,23.02,0,3.84,0,20
08/10/2015,ARCO LTD,Risk Management,Clothing And Uniforms,16.79,20.15,0,3.36,0,0
09/10/2015,XMA LTD,Community Safety Partnership,Contractual Services,73.52,88.22,0,14.7,0,0
12/10/2015,DISCLOSURE & BARRING,Personnel Section,Disclosure & barring service,13,13,0,0,0,0
12/10/2015,DISCLOSURE & BARRING,Personnel Section,Disclosure & barring service,13,13,0,0,0,0
12/10/2015,DISCLOSURE & BARRING,Personnel Section,Disclosure & barring service,13,13,0,0,0,0
12/10/2015,DISCLOSURE & BARRING,Personnel Section,Disclosure & barring service,13,13,0,0,0,0
12/10/2015,CO OP FOOD,Southwell Tr admin & ops,Vending Machine Provisions,12,12,0,0,0,0
12/10/2015,DISCLOSURE & BARRING,Leisure Centres,Professional Services,13,13,0,0,0,0
12/10/2015,DISCLOSURE SCOT,Community Safety,Contractual Services,25,25,0,0,0,0
13/10/2015,CALIVER BOOKS,National Civil War Centre,Publications,20.1,20.1,0,0,0,0
13/10/2015,WWW.JUSTICE.GOV.UK,Community Safety,Professional Services,280,280,0,0,0,0
14/10/2015,ALL PURPOSE CLEANING S,Southwell Tr admin & ops,Cleaning Materials,132.91,159.49,0,26.58,0,0
14/10/2015,WWW.BRITISH-GYMNASTICS,Southwell Tr admin & ops,Equipment badges,560.38,672.46,0,112.08,0,20
14/10/2015,BLUE CASTLE BUSINESS S,Palace Theatre,Contractual Services,155,186,0,31,0,20
14/10/2015,Amazon EU,Is Non Stock Recharges,Other Equipment And Tools,182.92,219.5,0,36.58,0,20
13/10/2015,SAUNASHOP.COM,Southwell Tr admin & ops,Other Equipment Maintenance,29.02,34.82,0,5.8,0,20
15/10/2015,VIRGINTRAINSEC SERVCS,Area Planning,Travel And Subsistence,188.45,188.45,0,0,0,0
15/10/2015,VIRGINTRAINSEC SERVCS,Area Planning,Travel And Subsistence,25.45,25.45,0,0,0,0
15/10/2015,Amazon EU,Energy Services,Printing,31.58,37.89,0,6.31,0,0
15/10/2015,FARMSTAR LTD,Grounds Maintenance,Materials,30.82,36.98,0,6.16,0,20
15/10/2015,FARMSTAR LTD,Sconce & Devon Park,Other Equipment And Tools,34.17,41,0,6.83,0,20
15/10/2015,FARMSTAR LTD,Grounds Maintenance,Materials,124.62,149.54,0,24.92,0,20
15/10/2015,DISCLOSURE & BARRING,Personnel Section,Disclosure & barring service,13,13,0,0,0,0
15/10/2015,DISCLOSURE & BARRING,Personnel Section,Disclosure & barring service,13,13,0,0,0,0
15/10/2015,DISCLOSURE & BARRING,Personnel Section,Disclosure & barring service,13,13,0,0,0,0
15/10/2015,DISCLOSURE & BARRING,Personnel Section,Disclosure & barring service,13,13,0,0,0,0
15/10/2015,DISCLOSURE & BARRING,Personnel Section,Disclosure & barring service,13,13,0,0,0,0
15/10/2015,DISCLOSURE & BARRING,Personnel Section,Disclosure & barring service,13,13,0,0,0,0
15/10/2015,DISCLOSURE & BARRING,Personnel Section,Disclosure & barring service,13,13,0,0,0,0
15/10/2015,DISCLOSURE & BARRING,Personnel Section,Disclosure & barring service,13,13,0,0,0,0
15/10/2015,DISCLOSURE & BARRING,Personnel Section,Disclosure & barring service,13,13,0,0,0,0
15/10/2015,DISCLOSURE & BARRING,Personnel Section,Disclosure & barring service,13,13,0,0,0,0
15/10/2015,DISCLOSURE & BARRING,Personnel Section,Disclosure & barring service,13,13,0,0,0,0
15/10/2015,WWW.THELAWSOCIETY.ORG,Corporate Management Team,Subscriptions,352,352,0,0,0,0
15/10/2015,WWW.JUSTICE.GOV.UK,Legal Section,Professional Services,545,545,0,0,0,0
15/10/2015,WWW.THELAWSOCIETY.ORG,Central Personnel Expenses,Internal Training,352,352,0,0,0,0
15/10/2015,WWW.THELAWSOCIETY.ORG,Corporate Management Team,Subscriptions,352,352,0,0,0,0
16/10/2015,WWW.DVLA.GOV.UK,Pest Control,Licences & M.O.T.'S,227.5,227.5,0,0,0,0
17/10/2015,CO OP FOOD,Southwell Tr admin & ops,Vending Machine Provisions,12,12,0,0,0,0
16/10/2015,WWW.THELAWSOCIETY.ORG,Legal Section,Subscriptions,352,352,0,0,0,0
16/10/2015,TRAINLINE,Income,Travel And Subsistence,56.1,56.1,0,0,0,0
16/10/2015,DISCLOSURE & BARRING,Leisure Centres,Professional Services,-13,-13,0,0,0,0
16/10/2015,DISCLOSURE & BARRING,Leisure Centres,Professional Services,13,13,0,0,0,0
16/10/2015,DISCLOSURE SCOT,Ict,Professional Services,25,25,0,0,0,0
16/10/2015,POST OFFICE COUNTER,Southwell Tr admin & ops,Postages,2.88,3.46,0,0.58,0,20
14/10/2015,FARMFOODS LIMITED,Southwell Tr admin & ops,Vending Machine Provisions,9,9,0,0,0,0
15/10/2015,ARCO LTD,Car Parks & Markets Admin,Clothing And Uniforms,14.99,17.99,0,3,0,0
19/10/2015,ASDA  STORES 4201,National Civil War Centre,Travel And Subsistence,10.5,10.5,0,0,0,0
19/10/2015,TRAINLINE,Corporate Management,Shared Service Salary Costs,27.54,27.54,0,0,0,0
19/10/2015,DISCLOSURE & BARRING,Energy Services,Professional Services,13,13,0,0,0,0
19/10/2015,SETON,Southwell Tr admin & ops,Other Equipment Maintenance,46.84,56.21,0,9.37,0,20
19/10/2015,CO OP FOOD,Southwell Tr admin & ops,Vending Machine Provisions,10,10,0,0,0,0
19/10/2015,ROYAL MAIL  0845606040,Area Planning,Postages,1.5,1.5,0,0,0,0
19/10/2015,ROYAL MAIL  0845606040,Council Tax,Postages,1.5,1.5,0,0,0,0
19/10/2015,ROYAL MAIL  0845606040,Area Planning,Postages,2,2,0,0,0,0
20/10/2015,STANFORD MARSH LTD,Planning Support,Contractual Services,454.1,454.1,0,0,0,0
20/10/2015,Amazon UK Marketplace,Is Non Stock Recharges,Equipment Replacement,433.55,433.55,0,0,0,0
21/10/2015,TESCO DIRECT,Building Services,Repairs And Maintenance,23.33,28,0,4.67,0,20
21/10/2015,"Amazon Svcs Europe,SAR",Housing Options,Office Equipment Purchase,4.99,4.99,0,0,0,0
21/10/2015,TRAINLINE,Income,Travel And Subsistence,56.1,56.1,0,0,0,0
22/10/2015,CO-OP GROUP 017957,Southwell Tr admin & ops,Vending Machine Provisions,10,10,0,0,0,0
22/10/2015,VIRGINTRAINSEC SERVCS,Area Planning,Travel And Subsistence,178,178,0,0,0,0
22/10/2015,TNT DIRECT,Area Planning,Professional Services,39.48,39.48,0,0,0,0
22/10/2015,VIRGINTRAINSEC SERVCS,Area Planning,Travel And Subsistence,98,98,0,0,0,0
22/10/2015,BEST WESTERN HOTELS,Economic Development Unit,Inward investment,81.75,98.1,0,16.35,0,20
21/10/2015,HOLLAND COURT HOTEL,Economic Development Unit,Travel And Subsistence,75,90,0,15,0,20
23/10/2015,MAPLIN MANSFIELD NG18,Southwell Tr admin & ops,Other Equipment And Tools,399.92,479.91,0,79.99,0,20
25/10/2015,CO OP FOOD,Southwell Tr admin & ops,Vending Machine Provisions,10,10,0,0,0,0
23/10/2015,WILKO RETAIL LIMIT,Cashiers,Office Equipment Purchase,9.58,11.5,0,1.92,0,20
26/10/2015,GTR WEB RAIL SALES,Corporate Management Team,Travel And Subsistence,76.1,76.1,0,0,0,0
27/10/2015,CO OP FOOD,Southwell Tr admin & ops,Vending Machine Provisions,5.78,5.78,0,0,0,0
27/10/2015,CO OP FOOD,Southwell Tr admin & ops,Miscellaneous Expenses,2.07,2.49,0,0.42,0,0
27/10/2015,POST OFFICE COUNTER,Southwell Tr admin & ops,Miscellaneous Expenses,2.91,3.49,0,0.58,0,0
27/10/2015,XMA LTD,Housing Options,Printer Expenses,103.4,124.08,0,20.68,0,0
27/10/2015,MAILCHIMP,Palace Theatre,Advertising,49.51,49.51,0,0,0.08,0
27/10/2015,TNT DIRECT,Ict,Hardware Maintenance,10.95,13.14,0,2.19,0,20
28/10/2015,TOURIST NET UK LTD,Vicar Water Park,Contractual Services,44.5,53.4,0,8.9,0,20
28/10/2015,TOURIST NET UK LTD,Sconce & Devon Park,Contractual Services,44.5,53.4,0,8.9,0,20
28/10/2015,TOURIST NET UK LTD,Newark Castle/Castle Grounds,Contractual Services,44.5,53.4,0,8.9,0,20
28/10/2015,Amazon UK Marketplace,Vicar Water Park,Materials,23.46,28.15,0,4.69,0,20
28/10/2015,DISCLOSURE & BARRING,Energy Services,Professional Services,13,13,0,0,0,0
29/10/2015,FARMSTAR LTD,Grounds Maintenance,Materials,67.83,81.4,0,13.57,0,20
29/10/2015,FARMSTAR LTD,Grounds Maintenance,Materials,17.64,17.64,0,0,0,0
29/10/2015,BRITISH AMATEUR GYMN A,Southwell Tr admin & ops,Training Expenses,100,100,0,0,0,0
29/10/2015,WWW.TOOLSTATION.COM,Cctv,Other Equipment And Tools,15.25,18.3,0,3.05,0,20
01/11/2015,FARMFOODS LIMITED,Southwell Tr admin & ops,Vending Machine Provisions,9,9,0,0,0,0
02/11/2015,DISCLOSURE & BARRING,Personnel Section,Disclosure & barring service,13,13,0,0,0,0
02/11/2015,FARMSTAR LTD,Grounds Maintenance,Materials,31.75,38.1,0,6.35,0,20
02/11/2015,CAMPANIESINTHEUK.C,Vicar Water Park,Contractual Services,4.99,5.99,0,1,0,20
02/11/2015,CAMPANIESINTHEUK.C,Vicar Water Park,Contractual Services,4.99,5.99,0,1,0,20
02/11/2015,FARMSTAR LTD,Grounds Maintenance,Clothing And Uniforms,46.94,46.94,0,0,0,0
02/11/2015,TOTAL MERCHANDISE LTD,Street Sweeping,Materials,235.9,283.08,0,47.18,0,20
02/11/2015,FARMFOODS LIMITED,Southwell Tr admin & ops,Vending Machine Provisions,9,9,0,0,0,0
04/11/2015,WWW.HYDRO-X-STORE.CO.U,Central Personnel Expenses,Internal Training,375,450,0,75,0,20
04/11/2015,Cross Country,National Civil War Centre,Travel And Subsistence,23.9,23.9,0,0,0,0
04/11/2015,DISCLOSURE & BARRING,Personnel Section,Disclosure & barring service,13,13,0,0,0,0
04/11/2015,Amazon UK Marketplace,Newark Open Market,Materials,74.43,89.32,0,14.89,0,20
04/11/2015,Amazon EU,Newark Open Market,Materials,25.62,30.75,0,5.13,0,20
05/11/2015,NEWARK & SHERWOOD LOCK,National Civil War Centre,Repairs And Maintenance,83.33,100,0,16.67,0,20
05/11/2015,CO OP FOOD,Southwell Tr admin & ops,Vending Machine Provisions,12,12,0,0,0,0
05/11/2015,BL PIC LIB,National Civil War Centre,Exhibitions And Displays,89,106.8,0,17.8,0,20
04/11/2015,POSTCRIPT SANDPIPE,National Civil War Centre,Exhibitions And Displays,32.98,32.98,0,0,0,0
05/11/2015,DISCLOSURE & BARRING,Personnel Section,Disclosure & barring service,13,13,0,0,0,0
08/11/2015,CO OP FOOD,Southwell Tr admin & ops,Vending Machine Provisions,12,12,0,0,0,0
05/11/2015,Cross Country,National Civil War Centre,Travel And Subsistence,36.7,36.7,0,0,0,0
07/11/2015,PAYPAL  SALESIGNSUK,National Civil War Centre,Items For Resale,12.66,15.19,0,2.53,0,20
06/11/2015,TRAINLINE,Strategic Hsg (Was Community),Travel And Subsistence,164.02,164.02,0,0,0,0
07/11/2015,OYSTER AUTOTOPUP,Aggregated Budgets,Travel And Subsistence,20,20,0,0,0,0
09/11/2015,WWW.DEFIBSHOP.CO.UK,Southwell Tr admin & ops,Other Equipment And Tools,269.28,323.14,0,53.86,0,20
09/11/2015,WM MORRISON 048,National Civil War Centre,Items For Resale,9.17,11,0,1.83,0,20
09/11/2015,HALDO DEVELOPMENTS,Cctv,Other Equipment And Tools,118.1,141.72,0,23.62,0,20
10/11/2015,WWW.DVLA.GOV.UK,Vehicle Pool Nsh,Licences & M.O.T.'S,227.5,227.5,0,0,0,0
10/11/2015,WWW.DVLA.GOV.UK,Vehicle Pool Nsh,Licences & M.O.T.'S,227.5,227.5,0,0,0,0
10/11/2015,WWW.DVLA.GOV.UK,Vehicle Pool Nsh,Licences & M.O.T.'S,227.5,227.5,0,0,0,0
10/11/2015,WWW.DVLA.GOV.UK,Grounds Maintenance,Licences & M.O.T.'S,227.5,227.5,0,0,0,0
10/11/2015,WWW.DVLA.GOV.UK,Vehicle Pool Nsh,Licences & M.O.T.'S,227.5,227.5,0,0,0,0
10/11/2015,WWW.DVLA.GOV.UK,Grounds Maintenance,Licences & M.O.T.'S,227.5,227.5,0,0,0,0
10/11/2015,WWW.DVLA.GOV.UK,Refuse Collection,Licences & M.O.T.'S,22.5,22.5,0,0,0,0
10/11/2015,WWW.DVLA.GOV.UK,Refuse Collection,Licences & M.O.T.'S,22.5,22.5,0,0,0,0
10/11/2015,WWW.DVLA.GOV.UK,Vehicle Pool Nsh,Licences & M.O.T.'S,227.5,227.5,0,0,0,0
10/11/2015,WWW.DVLA.GOV.UK,Grounds Maintenance,Licences & M.O.T.'S,227.5,227.5,0,0,0,0
10/11/2015,WWW.DVLA.GOV.UK,Grounds Maintenance,Licences & M.O.T.'S,227.5,227.5,0,0,0,0
10/11/2015,WWW.DVLA.GOV.UK,Vehicle Pool Nsh,Licences & M.O.T.'S,227.5,227.5,0,0,0,0
10/11/2015,WWW.DVLA.GOV.UK,Vehicle Pool Nsh,Licences & M.O.T.'S,227.5,227.5,0,0,0,0
10/11/2015,WWW.DVLA.GOV.UK,Street Sweeping,Licences & M.O.T.'S,227.5,227.5,0,0,0,0
10/11/2015,WWW.DVLA.GOV.UK,Vehicle Pool Nsh,Licences & M.O.T.'S,227.5,227.5,0,0,0,0
10/11/2015,WWW.DVLA.GOV.UK,Vehicle Pool Nsh,Licences & M.O.T.'S,227.5,227.5,0,0,0,0
10/11/2015,WWW.DVLA.GOV.UK,Grounds Maintenance,Licences & M.O.T.'S,227.5,227.5,0,0,0,0
10/11/2015,WWW.DVLA.GOV.UK,Street Sweeping,Licences & M.O.T.'S,227.5,227.5,0,0,0,0
10/11/2015,WWW.DVLA.GOV.UK,Vehicle Pool Nsh,Licences & M.O.T.'S,227.5,227.5,0,0,0,0
10/11/2015,DISCLOSURE & BARRING,Personnel Section,Disclosure & barring service,-13,-13,0,0,0,0
10/11/2015,DISCLOSURE SCOT,Policy & Commissioning,Policy support,25,25,0,0,0,0
10/11/2015,EDEN SPRINGS,Aggregated Budgets,Catering Services Contractors,114,114,0,0,0,0
10/11/2015,WM MORRISON 048,Civic Expenses,Allowance,17.17,17.17,0,0,0,0
11/11/2015,FRUUGO,Dogs/ Animal Welfare,Clothing And Uniforms,52.92,63.5,0,10.58,0,20
11/11/2015,CO OP FOOD,Southwell Tr admin & ops,Vending Machine Provisions,19.18,19.18,0,0,0,0
11/11/2015,JOHN E WRIGHT,Area Planning,Ordnance Survey Extracts,90.06,90.06,0,0,0,0
11/11/2015,JOHN E WRIGHT,Area Planning,Ordnance Survey Extracts,15.06,15.06,0,0,0,0
11/11/2015,FARMSTAR LTD,Grounds Maintenance,Clothing And Uniforms,48,48,0,0,0,0
11/11/2015,NEWARK ADVERTISER COMP,Communications & Cust Services,Corporate Communication,240,288,0,48,0,20
11/11/2015,NEWARK ADVERTISER COMP,Communications & Cust Services,Corporate Communication,240,288,0,48,0,20
11/11/2015,VIRGINTRAINSEC SERVCS,National Civil War Centre,Travel And Subsistence,128.4,128.4,0,0,0,0
11/11/2015,PAYPAL  MUSEUMSASSC,Central Personnel Expenses,Internal Training,250,250,0,0,0,0
11/11/2015,SETON,Southwell Tr admin & ops,Other Equipment Maintenance,-15.95,-19.14,0,-3.19,0,20
11/11/2015,BT BILL PAYMENT 2,Cctv,Telephones,153.9,153.9,0,0,0,0
12/11/2015,WWW.CLICKCLEANING.CO.U,National Civil War Centre,Materials,54.13,64.96,0,10.83,0,20
12/11/2015,EAST MIDLANDS TRAI,Corporate Management Team,Travel And Subsistence,36.7,36.7,0,0,0,0
12/11/2015,Amazon EU,Ict,Departmental Hardware,49.83,49.83,0,0,0,0
12/11/2015,OYSTER AUTOTOPUP,Aggregated Budgets,Travel And Subsistence,20,20,0,0,0,0
11/11/2015,PREMIER TRAVEL INN,Corporate Management Team,Travel And Subsistence,90,108,0,18,0,20
12/11/2015,VIRGINTRAINSEC SERVCS,Corporate Management Team,Travel And Subsistence,66.6,66.6,0,0,0,0
13/11/2015,FARMSTAR LTD,Grounds Maintenance,Materials,83.88,100.66,0,16.78,0,20
13/11/2015,FARMSTAR LTD,Grounds Maintenance,Clothing And Uniforms,46.94,46.94,0,0,0,0
14/11/2015,CO OP FOOD,Southwell Tr admin & ops,Vending Machine Provisions,12,12,0,0,0,0
12/11/2015,SCREENCAST-O-MATIC.COM,Ict,Departmental Hardware,19.56,19.56,0,0,0,0
13/11/2015,VIRGINTRAINSEC SERVCS,Corporate Management Team,Travel And Subsistence,56.3,56.3,0,0,0,0
13/11/2015,Amazon Prime,Is Non Stock Recharges,Equipment Replacement,79,79,0,0,0,0
16/11/2015,NORTHERN RAIL WEBSALES,National Civil War Centre,Travel And Subsistence,35.1,35.1,0,0,0,0
16/11/2015,IRMS,Information Governance,Cd Duplicator,66.67,80,0,13.33,0,20
17/11/2015,CO OP FOOD,Southwell Tr admin & ops,Vending Machine Provisions,12,12,0,0,0,0
17/11/2015,WALES REGION,Env Health Reactive,Publications,20,20,0,0,0,0
17/11/2015,DISCLOSURE SCOT,Community Safety,Contractual Services,25,25,0,0,0,0
17/11/2015,DISCLOSURE SCOT,Personnel Section,Disclosure & barring service,25,25,0,0,0,0
18/11/2015,NOTJUSTBALLOONS,National Civil War Centre,Items For Resale,8.32,9.99,0,1.67,0,20
18/11/2015,WWW.ARTSCAPEONLINE.COM,National Civil War Centre,Items For Resale,23,27.6,0,4.6,0,20
18/11/2015,HOMEBASE LTD,National Civil War Centre,Materials,28.28,33.94,0,5.66,0,20
19/11/2015,FREIGHT PRODUCTS(UK) L,Street Sweeping,Materials,270.12,324.14,0,54.02,0,20
19/11/2015,ASDA  STORES 4201,National Civil War Centre,Travel And Subsistence,13.2,13.2,0,0,0,0
19/11/2015,TRFSA   THOMSONREUTERS,Area Planning,Publications,53,53,0,0,0,0
19/11/2015,HOMEBASE LTD,National Civil War Centre,Materials,3.15,3.78,0,0.63,0,20
19/11/2015,JOHN LEWIS,National Civil War Centre,Items For Resale,43.75,52.5,0,8.75,0,20
21/11/2015,CO OP FOOD,Southwell Tr admin & ops,Vending Machine Provisions,12,12,0,0,0,0
20/11/2015,WWW.JOHNLEWIS.COM,National Civil War Centre,Materials,46.62,55.95,0,9.33,0,20
19/11/2015,JOHN LEWIS,National Civil War Centre,Items For Resale,-43.75,-52.5,0,-8.75,0,20
20/11/2015,Cross Country,Communications & Cust Services,Travel And Subsistence,70.2,70.2,0,0,0,0
20/11/2015,WWW.PARTYARK.CO.UK,Palace Theatre,Items For Resale,148.95,148.95,0,0,0,0
20/11/2015,FARMSTAR LTD,Grounds Maintenance,Materials,28.73,34.48,0,5.75,0,20
20/11/2015,FARMSTAR LTD,Grounds Maintenance,Materials,15.42,18.5,0,3.08,0,20
23/11/2015,THE RAM,Economic Development Unit,Employment & skills,25.45,25.45,0,0,0,0
23/11/2015,TINDALLS,Env Health Proactive,Stationery,28.32,33.98,0,5.66,0,20
23/11/2015,EAST MIDLANDS TRAI,National Civil War Centre,Travel And Subsistence,12.8,12.8,0,0,0,0
23/11/2015,Amazon Prime,Is Non Stock Recharges,Equipment Replacement,-79,-79,0,0,0,0
24/11/2015,CRAFTIS LTD,Southwell Tr admin & ops,Miscellaneous Expenses,284.4,341.28,0,56.88,0,20
24/11/2015,DECATHLON UK LTD,Southwell Tr admin & ops,Other Equipment And Tools,16.65,19.98,0,3.33,0,20
24/11/2015,DISCLOSURE SCOT,Ict,Professional Services,25,25,0,0,0,0
24/11/2015,DISCLOSURE SCOT,Ict,Professional Services,25,25,0,0,0,0
24/11/2015,CO OP FOOD,Southwell Tr admin & ops,Vending Machine Provisions,12,12,0,0,0,0
24/11/2015,"Amazon Svcs Europe,SAR",Ict,Departmental Hardware,2.28,2.28,0,0,0,0
25/11/2015,Amazon UK Marketplace,Ict,Departmental Hardware,2.04,2.04,0,0,0,0
24/11/2015,BIOTECTS LTD,Customer Services,Office Equipment Purchase,38.4,46.08,0,7.68,0,20
25/11/2015,FREIGHT PRODUCTS(UK) L,Street Sweeping,Materials,-75,-90,0,-15,0,20
25/11/2015,DISCLOSURE & BARRING,Personnel Section,Disclosure & barring service,-13,-13,0,0,0,0
25/11/2015,FARMSTAR LTD,Grounds Maintenance,Clothing And Uniforms,19.84,23.81,0,3.97,0,20
25/11/2015,DISCLOSURE & BARRING,Personnel Section,Disclosure & barring service,13,13,0,0,0,0
25/11/2015,DISCLOSURE & BARRING,Personnel Section,Disclosure & barring service,13,13,0,0,0,0
26/11/2015,FOOD SAFETY DIRECT LTD,Neighbourhood Centres,Repairs And Maintenance,66.1,79.32,0,13.22,0,20
26/11/2015,VIRGINTRAINSEC SERVCS,Area Planning,Travel And Subsistence,331.95,331.95,0,0,0,0
26/11/2015,Virgintrains.co.uk,Financial Services,Travel And Subsistence,33.43,35.1,0,1.67,0,5
26/11/2015,DISCLOSURE & BARRING,Leisure Centres,Professional Services,13,13,0,0,0,0
27/11/2015,CO OP FOOD,Southwell Tr admin & ops,Vending Machine Provisions,12,12,0,0,0,0
27/11/2015,DISCLOSURE & BARRING,Personnel Section,Disclosure & barring service,13,13,0,0,0,0
27/11/2015,MAILCHIMP,Palace Theatre,Advertising,50.29,50.29,0,0,0.08,0
01/12/2015,CO OP FOOD,Southwell Tr admin & ops,Vending Machine Provisions,20,20,0,0,0,0
01/12/2015,W BOYES & CO LTD NEWAR,National Civil War Centre,Materials,6.62,7.95,0,1.33,0,20
01/12/2015,TRFSA   THOMSONREUTERS,Area Planning,Publications,53,53,0,0,0,0
01/12/2015,NEWARK & SHERWOOD LOCK,Cctv,Other Equipment And Tools,60,72,0,12,0,20
02/12/2015,WWW.DVLA.GOV.UK,Vehicle Pool Nsh,Licences & M.O.T.'S,227.5,227.5,0,0,0,0
02/12/2015,WWW.CLICKCLEANING.CO.U,National Civil War Centre,Repairs And Maintenance,51.99,62.39,0,10.4,0,20
02/12/2015,WWW.FASHIONATWORK.CO.U,National Civil War Centre,Clothing And Uniforms,126.42,151.71,0,25.29,0,20
01/12/2015,WILKO RETAIL LIMIT,National Civil War Centre,Materials,5,6,0,1,0,20
02/12/2015,VIRGINTRAINSEC SERVCS,Corporate Management Team,Travel And Subsistence,138,138,0,0,0,0
02/12/2015,FARMSTAR LTD,Grounds Maintenance,Materials,35.98,35.98,0,0,0,0
03/12/2015,WWW.DVLA.GOV.UK,Street Sweeping,Licences & M.O.T.'S,167.5,167.5,0,0,0,0
03/12/2015,WWW.DVLA.GOV.UK,Street Sweeping,Licences & M.O.T.'S,167.5,167.5,0,0,0,0
03/12/2015,VIRGINTRAINSEC SERVCS,Corporate Management Team,Travel And Subsistence,52.45,52.45,0,0,0,0
03/12/2015,XMA LTD,Newark Castle/Castle Grounds,Office Equipment Purchase,69.78,83.74,0,13.96,0,20
04/12/2015,Amazon EU,National Civil War Centre,Materials,26.5,31.8,0,5.3,0,20
03/12/2015,WWW.SEVERNTRENTSEARCHE,Strategic Hsg (Was Community),Housing Strategy/Needs Assessm,120,144,0,24,0,20
04/12/2015,VIRGINTRAINSEC NNG STN,National Civil War Centre,Travel And Subsistence,77.8,77.8,0,0,0,0
04/12/2015,FARMFOODS LIMITED,Southwell Tr admin & ops,Vending Machine Provisions,9,9,0,0,0,0
04/12/2015,WWW.ISTOCK.COM,Communications & Cust Services,Corporate Communication,105.6,105.6,0,0,0,0
07/12/2015,PAYPAL  SAUNATEC,Active4Today repairs & maintenance,Payments,143.33,172,0,28.67,0,20
07/12/2015,CALIVER BOOKS,National Civil War Centre,Publications,16.74,16.74,0,0,0,0
07/12/2015,FOOD SAFETY DIRECT LTD,National Civil War Centre,Repairs And Maintenance,87.5,105,0,17.5,0,20
07/12/2015,SPALDINGS.CO.UK,Grounds Maintenance,Materials,40,48,0,8,0,20
07/12/2015,CO OP FOOD,Southwell Tr admin & ops,Vending Machine Provisions,12,12,0,0,0,0
07/12/2015,WH SMITH,Car Parks & Markets Admin,Office Equipment Purchase,15.86,19.03,0,3.17,0,20
07/12/2015,OSBORNES NEWARK,Car Parks & Markets Admin,Office Equipment Purchase,80.93,97.12,0,16.19,0,20
08/12/2015,"Amazon Svcs Europe,SAR",Cctv,Other Equipment And Tools,14.99,14.99,0,0,0,0
08/12/2015,Amazon UK Marketplace,National Civil War Centre,Education & Outreach,37.25,44.7,0,7.45,0,20
08/12/2015,Amazon UK Marketplace,National Civil War Centre,Education & Outreach,18.79,22.55,0,3.76,0,20
08/12/2015,FARMSTAR LTD,Grounds Maintenance,Materials,16.6,19.92,0,3.32,0,20
08/12/2015,Amazon UK Marketplace,Cctv,Other Equipment And Tools,13.53,13.53,0,0,0,0
09/12/2015,Amazon UK Marketplace,National Civil War Centre,Education & Outreach,25.99,31.19,0,5.2,0,20
09/12/2015,Amazon UK Marketplace,National Civil War Centre,Education & Outreach,16.37,19.65,0,3.28,0,20
09/12/2015,DISCLOSURE SCOT,Anti-Social Behaviour,Professional Services,25,25,0,0,0,0
09/12/2015,EastMidlandsTrains,Corporate Management Team,Travel And Subsistence,161.5,161.5,0,0,0,0
09/12/2015,EastMidlandsTrains,Corporate Management Team,Travel And Subsistence,161.5,161.5,0,0,0,0
09/12/2015,WM MORRISON 048,Civic Expenses,Allowance,6,6,0,0,0,0
10/12/2015,Amazon UK Marketplace,National Civil War Centre,Education & Outreach,22.62,27.15,0,4.53,0,20
10/12/2015,WWW.UKPOS.COM,Economic Development Unit,Promotion Of Events,94.1,112.92,0,18.82,0,20
10/12/2015,NCS VUE CITB HS&E REV,Central Personnel Expenses,Internal Training,129.15,129.15,0,0,0,0
10/12/2015,PAYPAL  EBAYMEMCOW,Emergency Planning,Other Equipment And Tools,32.94,32.94,0,0,0,0
10/12/2015,WILKO RETAIL LIMIT,Cctv,Other Equipment And Tools,5.1,5.1,0,0,0,0
11/12/2015,ICELAND,Southwell Tr admin & ops,Vending Machine Provisions,12,12,0,0,0,0
12/12/2015,WM MORRISON 048,National Civil War Centre,Materials,10,12,0,2,0,20
11/12/2015,CIVIL WAR / PALACE,National Civil War Centre,Publications,69.59,69.59,0,0,0,0
11/12/2015,VIRGINTRAINSEC SERVCS,Financial Services,Travel And Subsistence,63,63,0,0,0,0
14/12/2015,ASDA  STORES 4201,National Civil War Centre,Travel And Subsistence,8.33,10,0,1.67,0,20
14/12/2015,CO OP FOOD,Southwell Tr admin & ops,Vending Machine Provisions,12,12,0,0,0,0
14/12/2015,NCS VUE CITB HS&E REV,Risk Management,Publications,10.95,10.95,0,0,0,0
15/12/2015,Amazon EU,Community Safety Partnership,Contractual Services,94,94,0,0,0,0
15/12/2015,XMA LTD,Members Expenses,Stationery,9.05,10.86,0,1.81,0,0
15/12/2015,JOHN E WRIGHT,Area Planning,Ordnance Survey Extracts,14.22,14.22,0,0,0,0
15/12/2015,PAYPAL  AZENDALIMIT,Housing Options,Professional Services,17.91,17.91,0,0,0,0
15/12/2015,PAYPAL  BIHOLAENTER,Housing Options,Professional Services,20.94,20.94,0,0,0,0
15/12/2015,WWW.LOCAL.GOV.UK,Financial Services,Course Fees,282,282,0,0,0,0
15/12/2015,PRESERVATION EQUIP,Resource Centre. Museums,Materials,461.16,461.16,0,0,0,0
15/12/2015,ROYAL MAIL,Sherwood Heath Tic,Items For Resale,176.4,176.4,0,0,0,0
15/12/2015,VIRGINTRAINSEC SERVCS,Financial Services,Travel And Subsistence,106,106,0,0,0,0
15/12/2015,WM MORRISON 048,Civic Expenses,Allowance,43.47,43.47,0,0,0,0
16/12/2015,PAYPAL  SAUNATEC,Active4Today repairs & maintenance,Payments,38.84,46.61,0,7.77,0,20
16/12/2015,ALEC TIRANTI LIMIT,National Civil War Centre,Education & Outreach,46.89,56.27,0,9.38,0,20
16/12/2015,B & Q CALL CENTRE,Sherwood Heath Tic,Furniture And Fittings,41.67,50,0,8.33,0,20
16/12/2015,Amazon UK Marketplace,Cctv,Other Equipment And Tools,7.65,7.65,0,0,0,0
16/12/2015,CHARTERED INST OF LEGA,Legal Section,Professional Services,355,355,0,0,0,0
16/12/2015,XMA LTD,Vicar Water Park,Materials,30.99,37.19,0,6.2,0,0
17/12/2015,Amazon UK Marketplace,National Civil War Centre,Education & Outreach,3.22,3.87,0,0.65,0,20
17/12/2015,ARGOS LTD,Palace Theatre,Repairs And Maintenance,118.74,142.49,0,23.75,0,20
17/12/2015,TOURIST INFORMATION,Economic Development Unit,Promotion Of Events,20,20,0,0,0,0
18/12/2015,CO OP FOOD,Southwell Tr admin & ops,Miscellaneous Expenses,75.3,75.3,0,0,0,0
19/12/2015,CO OP FOOD,Southwell Tr admin & ops,Vending Machine Provisions,12,12,0,0,0,0
18/12/2015,Amazon UK Marketplace,National Civil War Centre,Education & Outreach,34.24,41.09,0,6.85,0,20
18/12/2015,Amazon UK Marketplace,National Civil War Centre,Education & Outreach,21.62,25.94,0,4.32,0,20
20/12/2015,ASDA  STORES 4201,National Civil War Centre,Travel And Subsistence,5,6,0,1,0,20
18/12/2015,Amazon UK Marketplace,Vicar Water Park,Materials,23.46,28.15,0,4.69,0,20
18/12/2015,Amazon UK Marketplace,Vicar Water Park,Materials,23.46,28.15,0,4.69,0,20
18/12/2015,Amazon EU,Vicar Water Park,Materials,15.82,18.99,0,3.17,0,20
21/12/2015,DNH GODADDY.COM EUROPE,Vicar Water Park,Contractual Services,7.98,7.98,0,0,0,0
21/12/2015,FARMSTAR LTD,Grounds Maintenance,Materials,13.54,16.25,0,2.71,0,20
21/12/2015,PS  LC SERVICES INC.CO,Communications & Cust Services,Corporate Communication,413.33,496,0,82.67,0.1,20
22/12/2015,SCREWFIX DIRECT,Southwell Tr admin & ops,Other Equipment And Tools,318.29,381.95,0,63.66,0,20
23/12/2015,KELHAM HALL,Env Health Proactive,Catering,300,300,0,0,0,0
23/12/2015,BT BILL PAYMENT 2,Cctv,Telephones,109.5,131.4,0,21.9,0,20
23/12/2015,BT BILL PAYMENT 2,Cctv,Telephones,100.22,120.27,0,20.05,0,20
27/12/2015,MAILCHIMP,Palace Theatre,Advertising,50.97,50.97,0,0,0.08,0
29/12/2015,TINDALLS,Energy Services,Stationery,13.22,15.86,0,2.64,0,20
29/12/2015,CO OP FOOD,Southwell Tr admin & ops,Vending Machine Provisions,12,12,0,0,0,0
30/12/2015,DISCLOSURE & BARRING,Leisure Centres,Professional Services,13,13,0,0,0,0
30/12/2015,DISCLOSURE & BARRING,Leisure Centres,Professional Services,13,13,0,0,0,0
